Workbook

Sheet Table rentabilité
B2: ETUDE RENTABILITE SOLUTIONS USAGE PRODUCTIF
B3: Presse à huile d'arachide
B5: réel
B6: optimisé
B7: réel
B10: Cases à vérifier
B11: Cases à compléter
B12: Cases à laisser vides
B13: Cases calculées
B15: Caractéristiques techniques du Projet
F16: 1650000
B17: Usage Productif | C17: Rendement (kg/jour) | D17: Puissance (kW) | F17: Prix (FCFA) | G17: Energie consommée (KWh/j) | H17: Energie à produire (kWh/j) | I17: Fonctionnement optimal | K17: Coefficient déperdition (k)
D18: Max | E18: Nominale | I18: heures par jour | J18: jours à l'année
B19: Presse à huile KK | C19: =8*I19 -> 96 | D19: - | E19: 0.35 | F19: =IF(B5=INDEX(B6:B7,1,1),F16,'dimensionnement réel'!E18) -> 2033742 | G19: =E19*I19 -> 4.2 | H19: =E19*I19/K19 -> 5.25 | I19: 12 | J19: 365 | K19: 0.8
D20: - | G20: =E20*I20 -> 0 | H20: =E20*I20/K20 -> 0 | J20: 365 | K20: 0.8
D21: - | G21: 0 | H21: 0 | J21: 365 | K21: 0.8
B23: Equipements complémentaires | C23: Puissance (kW) | D23: Nombre | E23: Consommation énergétique (kWh/jour) | F23: Fonctionnement | G23: Prix unitaire (FCFA)
F24: h/jour
B25: Ampoule LED | C25: 0.007 | D25: 4 | E25: =C25*F25*D25 -> 0.336 | F25: 12 | G25: 5000
B26: Projecteur LED | C26: 0.3 | D26: 1 | E26: =C26*F26*D26 -> 0.6 | F26: 2 | G26: 40000
E27: =C27*F27 -> 0 | H27: =0.936+0.36 -> 1.296
B28: Coffret de protection DC | D28: 1 | G28: 21550
B29: Coffret de protection AC | D29: 1 | G29: 2162
B30: Câbles et accessoires et protections | D30: 1 | G30: 150000
B31: transprot equipement | D31: 1 | G31: 400000
B32: Installation | D32: 1 | G32: 500000
B33: locale technique | D33: 1 | G33: 1000000
B34: demarreur | D34: 1 | G34: 87648
B35: support | D35: 1 | G35: 7500
B36: Monotoring | D36: 1 | E36: -
B38: Alimentation Solaire | C38: Puissance (kW) | D38: Prix (FCFA) | E38: Coefficient déperdition | F38: Tension (V) | H38: Batteries | I38: Capacité (Ampères/h) | J38: Prix (FCFA) | K38: Tension (V) | L38: Durée de vie* | M38: * en conditions optimales, annoncées constructeur
B39: Modules polycristallins 265 | C39: 0.265 | D39: 124000 | E39: 0.6 | F39: 24V | H39: Batterie de 12V, 265 Ah en C40 | I39: 265 | J39: 400000 | K39: 12 | L39: 10
B40: Modules polycristallins 275 | C40: 0.275 | D40: 49191 | F40: 24 | H40: Gel 220Ah 12V | I40: 220 | J40: 360250 | K40: 12 | L40: 10
B41: Tension nécessaire | C41: =IF(J41<0.5,"12V",IF(AND(J41>=0.5,J41<2),"24V",IF(J41>=2,"48V"))) -> 24V | H41: Tension nécessaire batteries | I41: =IF(J41<0.5,12,IF(AND(J41>=0.5,J41<2),24,IF(J41>=2,48))) -> 24 | J41: =F96*INDEX(C:C,MATCH(F71,B:B,0)) -> 1.1
B43: Onduleur | C43: kVa | D43: Prix (FCFA) | H43: Régulateur | I43: tension/courant | J43: Prix (FCFA) | K43: Tension (V)
B44: Onduleur 2KVA | C44: 2 | D44: 333500 | H44: Régulateur Victron Smart bluesolar MPPT 100V ; 50A | I44: 100/50 | J44: 114700 | K44: 12V/24V/48V
B45: Xtender 4 KVA | C45: 4 | D45: 500000 | H45: Régulateur Victron Smart bluesolar MPPT 100V ; 80A | I45: 100/80 | J45: 150000
B47: Irradiation Solaire
B48: Month | C48: Jan | D48: Feb | E48: Mar | F48: Apr | G48: May | H48: Jun | I48: Jul | J48: Aug | K48: Sep | L48: Oct | M48: Nov | N48: Dec | O48: Year
B49: H(15)* | C49: 5.12 | D49: 5.75 | E49: 6.37 | F49: 6.61 | G49: 6.34 | H49: 6.05 | I49: 6.26 | J49: 5.51 | K49: 6.03 | L49: 5.81 | M49: 5.226 | N49: 5.03 | O49: 6.01
B51: Électricité du réseau | D51: 1ère Tranche | E51: 2ème Tranche | F51: 3ème Tranche | J51: 1ère Tranche | K51: 2ème Tranche | L51: 3ème Tranche | M51: Total
B52: UP-Petite Puissance | C52: Tranche (KWh) | D52: 50 | E52: 500 | F52: ∞ | H52: UP-Petite Puissance | I52: Energie par Tranche | J52: =(F86*30)-SUM(K52:L52) -> 50 | K52: =IF((F86*30)>D52,(F86*30)-D52-L52,0) -> 104.08 | L52: =IF((F86*30)>E52,(F86*30)-E52,0) -> 0 | M52: =SUM(J52:L52) -> 154.08
C53: Prix (KWh) | D53: 128.85 | E53: 135.68 | F53: 147.68 | I53: Coût (FCFA) | J53: =J52*D53 -> 6442.5 | K53: 14121.5744 | L53: 0 | M53: 20564.0744
B54: UP-Moyenne Puissance | C54: Tranche | D54: 100 | E54: 500 | F54: ∞ | H54: UP-Moyenne Puissance | I54: Energie par Tranche | J54: =(F86*30)-SUM(K54:L54) -> 100 | K54: =IF((F86*30)>D54,(F86*30)-D54-L54,0) -> 54.08 | L54: =IF((F86*30)>E54,(F86*30)-E54,0) -> 0 | M54: 154.08
C55: Prix (KWh) | D55: 129.81 | E55: 136.53 | F55: 149.24 | I55: Coût (FCFA) | J55: =J54*D55 -> 12981 | K55: 7383.5424 | L55: 0 | M55: 20364.5424
B57: Frais fixes de raccordement | C57: Fixe/Distance | D57: Prix TTC | E57: Étude raccordement
B58: Réseau HTA | C58: Kg câble | D58: 10.000 à 100.000 | E58: 550000
B59: Réseau HTA - Autres Frais | C59: Fixe | D59: 2.000.000 à 7.000.000 | E59: 550000
B60: Transformateur HT/MT - BT | C60: Fixe | D60: 4800000 | E60: 179000
B61: Extension BT* | C61: Distance | D61: 8260 | E61: 179000
B62: Dépend également de la distance de transport des équipements et nombre et type de poteaux non mesurable sauf par Sénélec (approximation)
B65: Choix de dimensionnement du projet
B67: Production min. souhaitée (kg /jour) | F67: =C19 -> 96
B70: Choix presse à huiles | F70: Presse à huile KK
B71: Choix de l'alimentation solaire | F71: Modules polycristallins 275
B72: Choix du système de stokage | F72: Batterie de 12V, 265 Ah en C40
B73: Choix de l'onduleur | F73: Onduleur 2KVA
B74: Choix du régulateur | F74: Régulateur Victron Smart bluesolar MPPT 100V ; 50A
B75: Equivalent Réseau | F75: =IF(M52<M54,B52,B54) -> UP-Moyenne Puissance
B76: Raccordement nécessaire (MT, BT) et distance | F76: MT | G76: 500
B77: Montant Frais HTA et KG câble | F77: 4462549 | G77: 30
B79: Autonomie nécessaires au projet (jours) | F79: 1
B80: Profondeur décharge batteries | F80: 0.8
B82: Choix du cas pour dimensionnement solaire | F82: best case
F83: worst case
F84: average | G84: x
B86: Energie journalière consommée (KWh) | F86: =SUM(E25:E36)+INDEX(G:G,MATCH(F70,B:B,0)) -> 5.136 | G86: KWh
B87: Puissance crête projet (KW) | F87: =(INDEX(H:H,MATCH(F70,B:B,0))+SUM(E25:E36))/O49*F90 -> 1.029284526 | G87: KW
B88: Capacité totale système stockage (Ampères/heure) | F88: =(INDEX(G:G,MATCH(F70,B:B,0))+SUM(E26:E33))*1000*(F79)/(F80*I41) -> 250 | G88: Ah
B90: nombre presse à huile | F90: =ROUNDUP(F67/(C19),0) -> 1 | G90: unités
B91: puissance equippement journaliere majoré (KW) | F91: =(SUM(E19:E21)+SUM(E25:E36))*1.2 -> 1.5432 | G91: unités
B92: Ampoules LED | F92: =D25 -> 4 | G92: unités
B93: projecteur LED | F93: =D26 -> 1 | G93: unités
B94: Nb ensemble prises | F94: 1 | G94: unités
B95: Nb de demmareur | F95: 1 | G95: unités
B96: Nb de panneaux solaires | F96: =ROUNDUP(F87/INDEX(C:C,MATCH(F71,B:B,0)),0) -> 4 | G96: unités
B97: Nb de batteries en série | F97: =I41/INDEX(K:K,MATCH(F72,H:H,0)) -> 2 | G97: unités
B98: Nb de batteries en dérivation | F98: =ROUNDUP(F88/INDEX(I:I,MATCH(F72,H:H,0)),0) -> 1 | G98: unités
B99: Nb de batteries total | F99: =F97*F98 -> 2 | G99: unités
B100: Durée de vie attendue de la batterie | F100: 7 | G100: ans
B101: Nb régulateurs | F101: =IF(OR(C41=24,C41=12),1,1) -> 1 | G101: unités
B102: Nb onduleurs | F102: =ROUNDUP(F91/INDEX(C:C,MATCH(F73,B:B,0)),0) -> 1 | G102: unités
B104: Ratio de fonctionnement | F104: 0.9
B105: Employés nécessaires pour fonctionnement | F105: 2 | G105: personnes
B106: quantité d'arachide annuelle pressée attendue en Kg | F106: =INDEX(C:C,MATCH($F$70,B:B,0))*INDEX(J:J,MATCH($F$70,B:B,0))*F104*F90 -> 31536 | G106: Kg
B109: Calcul de charges variables et fixes
B111: CHARGES VARIABLES D'EXPLOITATION
B112: Désignation | C112: Quantité | D112: Prix unitaire | E112: Montant mensuel | F112: Montant total/an | H112: évolution annuelle charges d'exploitation | K112: 0.02
B113: achats graines d'arrachide non decortiqués | C113: =F106 -> 31536 | D113: 250 | E113: =C113*D113/12 -> 657000 | F113: =E113*12 -> 7884000
B114: bidons vides pour conditionnement | C114: 8 | D114: 100 | E114: =C114*D114*30 -> 24000 | F114: =E114*12 -> 288000 | H114: Avantage coût électricité PV vs. Réseau | J114: Sur 1 an | K114: =((MIN(M55,M53)*12)+IF(F76="MT",(G76*D61)+D60+E58+F77,(G76*D61)))-(SUM(F127:F131,F137)+SUM(G127:G131,G137)) -> 11930018.39
B115: salaires equipe presse | C115: 2 | D115: 30000 | E115: =C115*D115 -> 60000 | F115: =E115*12 -> 720000
B116: faris de maintenaice/trois mois | D116: 20000 | E116: =F116/12 -> 5000 | F116: =D116*3 -> 60000 | J116: Sur 5 ans | K116: =((MIN(M55,M53)*12*5)+IF(F76="MT",(G76*D61)+D60+E58+F77,(G76*D61)))-(SUM(F127:F131,F137)+(SUM(G127:G131,G137)*5)) -> 12270463.94
B117: transport | C117: 1 | D117: 10000 | E117: =C117*D117 -> 10000 | F117: =D117*12 -> 120000
B118: divers | C118: 1
J119: Sur 10 ans | K119: =((MIN(M55,M53)*12*10)+IF(F76="MT",(G76*D61)+D60+E58+F77,(G76*D61)))-(SUM(F127:F131,F137)+(SUM(G127:G131,G137)*10)) -> 12696020.89
B120: TOTAL (F CFA) | E120: =SUM(E113:E119) -> 756000 | F120: =SUM(F113:F119) -> 9072000
B122: INVESTISSEMENTS
B123: Désignation | C123: Quantité | D123: Prix unitaire TTC | E123: Durée de vie (an) | F123: Montant Total TTC | G123: Amortissement annuel
B124: Presse à huile | C124: =IF(B5=INDEX(B6:B7,1,1),F90,'dimensionnement réel'!C18) -> 1 | D124: =IF(B5=INDEX(B6:B7,1,1),INDEX(F:F,MATCH(F70,B:B,0)),'dimensionnement réel'!E18) -> 2033742 | E124: 10 | F124: =C124*D124 -> 2033742 | G124: =IFERROR(F124/E124,0) -> 203374.2
B125: ampoul LED | C125: =IF(B5=INDEX(B6:B7,1,1),D25,'dimensionnement réel'!C17) -> 4 | D125: =IF(B5=INDEX(B6:B7,1,1),G25,'dimensionnement réel'!E17) -> 5000 | E125: 4 | F125: =C125*D125 -> 20000 | G125: 5000
B126: projecteur LED | C126: =IF(B5=INDEX(B6:B7,1,1),F93,'dimensionnement réel'!C19) -> 2 | D126: =IF(B5=INDEX(B6:B7,1,1),C126,'dimensionnement réel'!E19) -> 40000 | E126: 10 | F126: =C126*D126 -> 80000 | G126: 8000
B127: Modules PV | C127: =IF(B5=INDEX(B6:B7,1,1),F96,'dimensionnement réel'!C7) -> 8 | D127: =IF(B5=INDEX(B6:B7,1,1),INDEX(D:D,MATCH(F71,B:B,0)),'dimensionnement réel'!E7) -> 49191 | E127: 25 | F127: =C127*D127 -> 393528 | G127: =IFERROR(F127/E127,0) -> 15741.12
B128: Support aluminium | C128: =IF(B5=INDEX(B6:B7,1,1),C127,'dimensionnement réel'!C15) -> 1 | D128: =IF(B5=INDEX(B6:B7,1,1),G35,'dimensionnement réel'!E15) -> 100000 | E128: 20 | F128: 100000 | G128: 5000
B129: Batterie | C129: =IF(B5=INDEX(B6:B7,1,1),F99,'dimensionnement réel'!C8) -> 2 | D129: =IF(B5=INDEX(B6:B7,1,1),INDEX(J:J,MATCH(F72,H:H,0)),'dimensionnement réel'!E8) -> 327957 | E129: =F100 -> 7 | F129: 655914 | G129: 93702
B130: Régulateur | C130: =IF(B5=INDEX(B6:B7,1,1),F101,'dimensionnement réel'!C9) -> 1 | D130: =IF(B5=INDEX(B6:B7,1,1),INDEX(J:J,MATCH(F74,H:H,0)),'dimensionnement réel'!E9) -> 114700 | E130: 10 | F130: 114700 | G130: 11470
B131: Onduleur chargeur | C131: =IF(B5=INDEX(B6:B7,1,1),F102,'dimensionnement réel'!C10) -> 1 | D131: =IF(B5=INDEX(B6:B7,1,1),INDEX(D:D,MATCH(F73,B:B,0)),'dimensionnement réel'!E10) -> 333500 | E131: 10 | F131: 333500 | G131: 33350
B132: Demmareur | C132: =IF(B5=INDEX(B6:B7,1,1),F95,'dimensionnement réel'!C13) -> 1 | D132: =IF(B5=INDEX(B6:B7,1,1),G34,'dimensionnement réel'!E13) -> 87648 | E132: 10 | F132: 87648 | G132: 8764.8
B133: Coffret de protection DC | C133: =IF(B5=INDEX(B6:B7,1,1),D28,'dimensionnement réel'!C11) -> 1 | D133: =IF(B5=INDEX(B6:B7,1,1),G28,'dimensionnement réel'!E11) -> 21550 | E133: 10 | F133: =C133*D133 -> 21550
B134: Coffret de protection AC | C134: =IF(B5=INDEX(B6:B7,1,1),D29,'dimensionnement réel'!C12) -> 1 | D134: =IF(B5=INDEX(B6:B7,1,1),G29,'dimensionnement réel'!E12) -> 2162 | E134: 10 | F134: 2162
B135: Câbles et accessoires et protections | C135: =IF(B5=INDEX(B6:B7,1,1),D30,'dimensionnement réel'!C14) -> 1 | D135: =IF(B5=INDEX(B6:B7,1,1),G30,'dimensionnement réel'!E14) -> 200000 | E135: 20 | F135: 200000 | G135: 10000
B136: transport equipement | C136: =IF(B5=INDEX(B6:B7,1,1),D31,'dimensionnement réel'!C22) -> 1 | D136: =IF(B5=INDEX(B6:B7,1,1),G31,'dimensionnement réel'!E22) -> 550000 | F136: 550000
B137: Installation | C137: =IF(B5=INDEX(B6:B7,1,1),D32,'dimensionnement réel'!C16) -> 1 | D137: =IF(B5=INDEX(B6:B7,1,1),G32,'dimensionnement réel'!E16) -> 500000 | E137: 0 | F137: 500000 | G137: 0
B138: locale technique | C138: =IF(B5=INDEX(B6:B7,1,1),D33,'dimensionnement réel'!C21) -> 1 | D138: =IF(B5=INDEX(B6:B7,1,1),G33,'dimensionnement réel'!E21) -> 1000000 | E138: 20 | F138: 1000000 | G138: 50000
B139: Monotoring | C139: =IF(B5=INDEX(B6:B7,1,1),D36,'dimensionnement réel'!C23) -> 1 | D139: =IF(B5=INDEX(B6:B7,1,1),D36*G36,'dimensionnement réel'!E23) -> 393560 | F139: 393560
B140: TOTAL (F CFA) | F140: =SUM(F124:F139) -> 6486304 | G140: =SUM(G124:G138) -> 444402.12
B142: Calcul des recettes d'exploitation
B144: RECETTES D'EXPLOITATION
B145: Désignation | C145: Quantité | D145: Prix unitare | E145: Recettes annuelles | F145: Recettes mensuel | H145: évolution annuelle recettes d'exploitation | K145: 0.02
B146: ventes d'huiles d'arrachides(L) | C146: =F106*0.35 -> 11037.6 | D146: 1100 | E146: =C146*D146 -> 12141360 | F146: =E146/12 -> 1011780
B147: ventes de tourteaux (kG) | C147: 7922 | D147: 200 | E147: =C147*D147 -> 1584400 | F147: =E147/12 -> 132033.3333
B149: TOTAL (F CFA) | E149: =SUM(E146:E148) -> 13725760 | F149: =SUM(F146:F148) -> 1143813.333
B151: Ressources et Financement des investissements
B153: BFR (Besoin en fonds de roulement)
B154: Type de tiers | C154: Client/fournisseur | D154: Délais de paiement / stocks (jours) | E154: Part des achats/ventes
C155: founisseur | D155: 0 | E155: 1
C156: client | D156: 0 | E156: 1
B158: Créances clients | C158: =((D156*F149/365*E156)) -> 0
B159: Crédit fournisseurs | C159: =(D155*F120*E155/365)*-1 -> 0
B160: Impact Stocks consommable | C160: 0
B161: Impact Stocks produits finis | C161: 0
B162: BFR | C162: =F113 -> 7884000 | D162: F CFA
B165: SCHÉMA DE FINANCEMENT | F165: ECHEANCIER DE REMBOURSEMENT
B166: Désignation | C166: Part | D166: Montant total TTC | F166: Année | G166: Capital | H166: Intérêts | I166: Reste | J166: Annuité | K166: mensualité
B167: Investissements | D167: =F140 -> 6486304 | F167: =IF(D174>10,"nb an insuffisant",IF(D174>=1,1,"-")) -> 1 | G167: =SUMIFS('Remboursement Mensualités'!C$14:C$133,'Remboursement Mensualités'!$F$14:$F$133,'Table rentabilité'!$F167) -> 2543206.87 | H167: =SUMIFS('Remboursement Mensualités'!D$14:D$133,'Remboursement Mensualités'!$F$14:$F$133,'Table rentabilité'!$F167) -> 1254004.287 | I167: =SUMIFS('Remboursement Mensualités'!E$14:E$133,'Remboursement Mensualités'!$F$14:$F$133,'Table rentabilité'!$F167) -> 129613148.1 | J167: =SUMIFS('Remboursement Mensualités'!B$14:B$133,'Remboursement Mensualités'!$F$14:$F$133,'Table rentabilité'!$F167) -> 3797211.157 | K167: =J167/12 -> 316434.2631
B168: Besoin en fonds de roulement | D168: =C162 -> 7884000 | F168: =IF(D174>10,"nb an insuffisant",IF(D174>=2,2,"-")) -> 2 | G168: =SUMIFS('Remboursement Mensualités'!C$14:C$133,'Remboursement Mensualités'!$F$14:$F$133,'Table rentabilité'!$F168) -> 2848391.695 | H168: =SUMIFS('Remboursement Mensualités'!D$14:D$133,'Remboursement Mensualités'!$F$14:$F$133,'Table rentabilité'!$F168) -> 948819.4629 | I168: =SUMIFS('Remboursement Mensualités'!E$14:E$133,'Remboursement Mensualités'!$F$14:$F$133,'Table rentabilité'!$F168) -> 97145302.91 | J168: =SUMIFS('Remboursement Mensualités'!B$14:B$133,'Remboursement Mensualités'!$F$14:$F$133,'Table rentabilité'!$F168) -> 3797211.157 | K168: =J168/12 -> 316434.2631
B169: COÛT TOTAL (F CFA) | D169: =SUM(D167:D168) -> 14370304 | F169: =IF(D174>10,"nb an insuffisant",IF(D174>=3,3,"-")) -> 3 | G169: =SUMIFS('Remboursement Mensualités'!C$14:C$133,'Remboursement Mensualités'!$F$14:$F$133,'Table rentabilité'!$F169) -> 3190198.698 | H169: =SUMIFS('Remboursement Mensualités'!D$14:D$133,'Remboursement Mensualités'!$F$14:$F$133,'Table rentabilité'!$F169) -> 607012.4595 | I169: =SUMIFS('Remboursement Mensualités'!E$14:E$133,'Remboursement Mensualités'!$F$14:$F$133,'Table rentabilité'!$F169) -> 60781316.3 | J169: =SUMIFS('Remboursement Mensualités'!B$14:B$133,'Remboursement Mensualités'!$F$14:$F$133,'Table rentabilité'!$F169) -> 3797211.157 | K169: 316434.2631
B170: Apport personnel | C170: =D170/F140 -> 0.154171004 | D170: =F138 -> 1000000 | F170: =IF(D174>10,"nb an insuffisant",IF(D174>=4,4,"-")) -> 4 | G170: =SUMIFS('Remboursement Mensualités'!C$14:C$133,'Remboursement Mensualités'!$F$14:$F$133,'Table rentabilité'!$F170) -> 3573022.542 | H170: =SUMIFS('Remboursement Mensualités'!D$14:D$133,'Remboursement Mensualités'!$F$14:$F$133,'Table rentabilité'!$F170) -> 224188.6158 | I170: =SUMIFS('Remboursement Mensualités'!E$14:E$133,'Remboursement Mensualités'!$F$14:$F$133,'Table rentabilité'!$F170) -> 20053651.29 | J170: =SUMIFS('Remboursement Mensualités'!B$14:B$133,'Remboursement Mensualités'!$F$14:$F$133,'Table rentabilité'!$F170) -> 3797211.157 | K170: 316434.2631
B171: Subvention | C171: 0 | D171: =C171*D169 -> 0 | F171: =IF(D174>10,"nb an insuffisant",IF(D174>=5,5,"-")) -> - | G171: =SUMIFS('Remboursement Mensualités'!C$14:C$133,'Remboursement Mensualités'!$F$14:$F$133,'Table rentabilité'!$F171) -> 0 | H171: =SUMIFS('Remboursement Mensualités'!D$14:D$133,'Remboursement Mensualités'!$F$14:$F$133,'Table rentabilité'!$F171) -> 0 | I171: =SUMIFS('Remboursement Mensualités'!E$14:E$133,'Remboursement Mensualités'!$F$14:$F$133,'Table rentabilité'!$F171) -> 0 | J171: =SUMIFS('Remboursement Mensualités'!B$14:B$133,'Remboursement Mensualités'!$F$14:$F$133,'Table rentabilité'!$F171) -> 0 | K171: 0
B172: Emprunt | C172: =100%-(C171+C170) -> 0.845828996 | D172: =D169*C172 -> 12154819.8 | F172: =IF(D174>10,"nb an insuffisant",IF(D174>=6,6,"-")) -> - | G172: =SUMIFS('Remboursement Mensualités'!C$14:C$133,'Remboursement Mensualités'!$F$14:$F$133,'Table rentabilité'!$F172) -> 0 | H172: =SUMIFS('Remboursement Mensualités'!D$14:D$133,'Remboursement Mensualités'!$F$14:$F$133,'Table rentabilité'!$F172) -> 0 | I172: =SUMIFS('Remboursement Mensualités'!E$14:E$133,'Remboursement Mensualités'!$F$14:$F$133,'Table rentabilité'!$F172) -> 0 | J172: =SUMIFS('Remboursement Mensualités'!B$14:B$133,'Remboursement Mensualités'!$F$14:$F$133,'Table rentabilité'!$F172) -> 0 | K172: 0
B173: Taux de l'emprunt | D173: 0.12 | F173: =IF(D174>10,"nb an insuffisant",IF(D174>=7,7,"-")) -> - | G173: =SUMIFS('Remboursement Mensualités'!C$14:C$133,'Remboursement Mensualités'!$F$14:$F$133,'Table rentabilité'!$F173) -> 0 | H173: =SUMIFS('Remboursement Mensualités'!D$14:D$133,'Remboursement Mensualités'!$F$14:$F$133,'Table rentabilité'!$F173) -> 0 | I173: =SUMIFS('Remboursement Mensualités'!E$14:E$133,'Remboursement Mensualités'!$F$14:$F$133,'Table rentabilité'!$F173) -> 0 | J173: =SUMIFS('Remboursement Mensualités'!B$14:B$133,'Remboursement Mensualités'!$F$14:$F$133,'Table rentabilité'!$F173) -> 0 | K173: 0
B174: Remboursement de l'emprunt (années) | D174: 4 | F174: =IF(D174>10,"nb an insuffisant",IF(D174>=8,8,"-")) -> - | G174: =SUMIFS('Remboursement Mensualités'!C$14:C$133,'Remboursement Mensualités'!$F$14:$F$133,'Table rentabilité'!$F174) -> 0 | H174: =SUMIFS('Remboursement Mensualités'!D$14:D$133,'Remboursement Mensualités'!$F$14:$F$133,'Table rentabilité'!$F174) -> 0 | I174: =SUMIFS('Remboursement Mensualités'!E$14:E$133,'Remboursement Mensualités'!$F$14:$F$133,'Table rentabilité'!$F174) -> 0 | J174: =SUMIFS('Remboursement Mensualités'!B$14:B$133,'Remboursement Mensualités'!$F$14:$F$133,'Table rentabilité'!$F174) -> 0 | K174: 0
F175: =IF(D174>10,"nb an insuffisant",IF(D174>=9,9,"-")) -> - | G175: =SUMIFS('Remboursement Mensualités'!C$14:C$133,'Remboursement Mensualités'!$F$14:$F$133,'Table rentabilité'!$F175) -> 0 | H175: =SUMIFS('Remboursement Mensualités'!D$14:D$133,'Remboursement Mensualités'!$F$14:$F$133,'Table rentabilité'!$F175) -> 0 | I175: =SUMIFS('Remboursement Mensualités'!E$14:E$133,'Remboursement Mensualités'!$F$14:$F$133,'Table rentabilité'!$F175) -> 0 | J175: =SUMIFS('Remboursement Mensualités'!B$14:B$133,'Remboursement Mensualités'!$F$14:$F$133,'Table rentabilité'!$F175) -> 0 | K175: 0
F176: =IF(D174>10,"nb an insuffisant",IF(D174>=10,"Année 10","-")) -> - | G176: =SUMIFS('Remboursement Mensualités'!C$14:C$133,'Remboursement Mensualités'!$F$14:$F$133,'Table rentabilité'!$F176) -> 0 | H176: =SUMIFS('Remboursement Mensualités'!D$14:D$133,'Remboursement Mensualités'!$F$14:$F$133,'Table rentabilité'!$F176) -> 0 | I176: =SUMIFS('Remboursement Mensualités'!E$14:E$133,'Remboursement Mensualités'!$F$14:$F$133,'Table rentabilité'!$F176) -> 0 | J176: =SUMIFS('Remboursement Mensualités'!B$14:B$133,'Remboursement Mensualités'!$F$14:$F$133,'Table rentabilité'!$F176) -> 0 | K176: 0
F177: TOTAL | G177: =SUM(G167:G176) -> 12154819.8 | H177: 3034024.825 | J177: 15188844.63
B180: Ressources et Financement des investissements
B182: RESULTAT BRUT D'EXPLOITATION (EBE)
B183: Désignation / Durée (années) | C183: 0 | D183: 1 | E183: 2 | F183: 3 | G183: 4 | H183: 5 | I183: 6 | J183: 7 | K183: 8 | L183: 9 | M183: Total
B184: Recettes | D184: =E149 -> 13725760 | E184: =D184+($K$145*D184) -> 14000275.2 | F184: 14280280.7 | G184: 14565886.32 | H184: 14857204.04 | I184: 15154348.13 | J184: 15457435.09 | K184: 15766583.79 | L184: 16081915.47 | M184: =SUM(C184:L184) -> 133889688.7
B185: Dépenses | D185: =SUM(F114:F117) -> 1188000 | E185: =(F113+D185)+(F113+D185)*$K$112 -> 9253440 | F185: =E185+($K$112*E185) -> 9438508.8 | G185: =F185+($K$112*F185) -> 9627278.976 | H185: =G185+($K$112*G185) -> 9819824.556 | I185: 10016221.05 | J185: 10216545.47 | K185: 10420876.38 | L185: 10629293.9 | M185: 80609989.13
B186: Amortissements | D186: =$G$140 -> 444402.12 | E186: 444402.12 | F186: 444402.12 | G186: 444402.12 | H186: 444402.12 | I186: 444402.12 | J186: 444402.12 | K186: 444402.12 | L186: 444402.12 | M186: 3999619.08
B187: Remboursement emprunt | D187: =IFERROR(INDEX($J$167:$J$176,MATCH(D183,$F$167:$F$176,0)),0) -> 3797211.157 | E187: 3797211.157 | F187: 3797211.157 | G187: 3797211.157 | H187: 0 | I187: 0 | J187: 0 | K187: 0 | L187: 0 | M187: 15188844.63
B188: Bénéfice avant impôts (EBITDA) | D188: =D184-SUM(D185:D187) -> 8296146.723 | E188: 505221.9225 | F188: 600158.6265 | G188: 696994.0646 | H188: 4592977.369 | I188: 4693724.959 | J188: 4796487.5 | K188: 4901305.293 | L188: 5008219.441 | M188: 34091235.9
B189: Impôts sur le bénéfice | D189: =IF(D188<0,0,0.3*D188) -> 2488844.017 | E189: 151566.5768 | F189: 180047.588 | G189: 209098.2194 | H189: 1377893.211 | I189: 1408117.488 | J189: 1438946.25 | K189: 1470391.588 | L189: 1502465.832 | M189: 10227370.77
B190: Bénéfice après impôts | D190: =D188-D189 -> 5807302.706 | E190: 353655.3458 | F190: 420111.0386 | G190: 487895.8452 | H190: 3215084.158 | I190: 3285607.471 | J190: 3357541.25 | K190: 3430913.705 | L190: 3505753.609 | M190: 23863865.13
B191: Trésorerie | D191: =C191+D190 -> 5807302.706 | E191: 6160958.052 | F191: 6581069.09 | G191: 7068964.935 | H191: 10284049.09 | I191: 13569656.56 | J191: 16927197.81 | K191: 20358111.52 | L191: 23863865.13
B192: Cash Flows | D192: =D190+D187-($H$177/$D$174) -> 8846007.657 | E192: 3392360.297 | F192: 3458815.99 | G192: 3526600.796 | H192: 2456577.952 | I192: 2527101.265 | J192: 2599035.044 | K192: 2672407.499 | L192: 2747247.402
B193: Cash Flows cumulés | D193: =C193+D192 -> 8846007.657 | E193: 12238367.95 | F193: 15697183.94 | G193: 19223784.74 | H193: 21680362.69 | I193: 24207463.96 | J193: 26806499 | K193: 29478906.5 | L193: 32226153.9
B196: Indicateurs économiques
B198: VAN | C198: =NPV(F198,IF(D183<=H198,D192,0),IF(E183<=H198,E192,0),IF(F183<=H198,F192,0),IF(G183<=H198,G192,0),IF(H183<=H198,H192,0),IF(I183<=H198,I192,0),IF(J183<=H198,J192,0),IF(K183<=H198,K192,0),IF(L183<=H198,L192,0))-D167 -> 20141965.91 | D198: FCFA | E198: Taux d'actualisation | F198: 0.05 | G198: Durée VAN (ans) | H198: 9 | N198: =-D167+IF(H198>=D183,(D190+D187-H177/D174)*((1+F198)^-1),0)+IF(H198>=E183,(E190+E187-H177/D174)*((1+F198)^-2),0)+IF(H198>=F183,(F190+F187-H177/D174)*((1+F198)^-3),0)+IF(H198>=G183,(G190+G187-H177/D174)*((1+F198)^-4),0)+IF(H198>=H183,(H190+H187-H177/D174)*((1+F198)^-5),0)+IF(H198>=I183,(I190+I187-H177/D174)*((1+F198)^-6),0)+IF(H198>=J183,(J190+J187-H177/D174)*((1+F198)^-7),0)+IF(H198>=K183,(K190+K187-H177/D174)*((1+F198)^-8),0)+IF(H198>=L183,(L190+L187-H177/D174)*((1+F198)^-9),0) -> 20141965.91 | O198: calcul VAN
B199: TRI | C199: =IRR(N199:W199) -> 0.9168249027 | N199: =-D167 -> -6486304 | O199: =IF(D183<=H198,D192,0) -> 8846007.657 | P199: =IF(E183<=H198,E192,0) -> 3392360.297 | Q199: =IF(F183<=H198,F192,0) -> 3458815.99 | R199: =IF(G183<=H198,G192,0) -> 3526600.796 | S199: =IF(H183<=H198,H192,0) -> 2456577.952 | T199: =IF(I183<=H198,I192,0) -> 2527101.265 | U199: =IF(J183<=H198,J192,0) -> 2599035.044 | V199: =IF(K183<=H198,K192,0) -> 2672407.499 | W199: =IF(L183<=H198,L192,0) -> 2747247.402
B200: IPI | C200: =SUM(O199:W199)/D167 -> 4.968338502 | D200: ="Pour 1000 CFA investis, on récupère "&ROUND(N200,0)&" CFA" -> Pour 1000 CFA investis, on récupère 3968 CFA | N200: =(C200-1)*1000 -> 3968.338502
B201: DCRI | C201: =N201+(-P201/(O201-P201)) ->  | D201: ="Le délai de récupération est de "&ROUNDDOWN(C201,0)&" ans et "&ROUNDDOWN((C201-ROUNDDOWN(C201,0))*12,0)&" mois" ->  | N201: =IF(AND(L193<0,L183<=H198),L183,IF(AND(K193<0,K183<=H198),K183,IF(AND(J193<0,J183<=H198),J183,IF(AND(I193<0,I183<=H198),I183,IF(AND(H193<0,H183<=H198),H183,IF(AND(G193<0,G183<=H198),G183,IF(AND(F193<0,F183<=H198),F183,IF(AND(E193<0,E183<=H198),E183,IF(AND(D193<0,D183<=H198),D183,IF(AND(C193<0,C183<=H198),C183)))))))))) -> FALSE | O201: =INDEX(C193:L193,MATCH(INDEX(C183:L183,MATCH(P201,C193:L193,0))+1,C183:L183,0)) ->  | P201: =IF(AND(L193<0,L183<=H198),L193,IF(AND(K193<0,K183<=H198),K193,IF(AND(J193<0,J183<=H198),J193,IF(AND(I193<0,I183<=H198),I193,IF(AND(H193<0,H183<=H198),H193,IF(AND(G193<0,G183<=H198),G193,IF(AND(F193<0,F183<=H198),F193,IF(AND(E193<0,E183<=H198),E193,IF(AND(D193<0,D183<=H198),D193,IF(AND(C193<0,C183<=H198),C193)))))))))) -> FALSE
B202: DSCR | C202: =(D184-D185)/(D187) -> 3.301833762

Sheet Remboursement Mensualités (hidden)
A1: Remboursement de prêt
A2: Taux annuel | B2: ='Table rentabilité'!D173 -> 0.12
A3: Capital emprunté | B3: ='Table rentabilité'!D172 -> 12154819.8
A4: Durée du prêt (en année) | B4: ='Table rentabilité'!D174 -> 4 | C4: =B4*12 -> 48
A5: Mensualité à régler | B5: =-PMT((1+B2)^(1/12)-1,B4*12,B3) -> 316434.2631 | C5: Formule mensualité | D5: =-VPM((1+B2)^(1/12)-1;B4*12;B3)
A7: Décomposition de la mensualité
A8: Remboursement du principal | B8: =-PPMT((1+B2)^(1/12)-1,1,B4*12,B3) -> 201099.6948 | C8: Formule principal | D8: =-PRINCPER((1+B2)^(1/12)-1;1;B4*12;B3)
A9: Remboursement des interêts | B9: =-IPMT((1+B2)^(1/12)-1,1,B4*12,B3) -> 115334.5683 | C9: Formule intérêt | D9: =-INTPER((1+B2)^(1/12)-1;1;B4*12;B3)
A12: Dans les formules ci-dessous Taux de période = TP = (1+$B$2)^(1/12)-1
A13: Périodes | B13: Mensualité | C13: Capital | D13: Intérêts | E13: Reste (ou résiduel) | F13: Années
A14: =IF(B4<>0,1,"-") -> 1 | B14: =IF(A14<>"-",C14+D14,"") -> 316434.2631 | C14: =IF(A14<>"-",-PPMT((1+$B$2)^(1/12)-1,A14,$B$4*12,$B$3),"") -> 201099.6948 | D14: =IF(A14<>"-",-IPMT((1+$B$2)^(1/12)-1,A14,$B$4*12,$B$3),"") -> 115334.5683 | E14: =IF(A14<>"-",$B$3+CUMPRINC((1+$B$2)^(1/12)-1,$B$4*12,$B$3,1,A14,0),"") -> 11953720.11 | F14: =IF(A14<>"-",1,"") -> 1 | G14: =IF(A14<>"-",1,"") -> 1
A15: =IF(AND($B$4<>0,A14<$C$4),A14+1,"-") -> 2 | B15: 316434.2631 | C15: 203007.8882 | D15: 113426.3749 | E15: 11750712.22 | F15: =IF(A15<>"-",IF(G14<G15,F14,F14+1),"") -> 1 | G15: =IF(A15="-","",IF(G14<12,G14+1,1)) -> 2
A16: 3 | B16: 316434.2631 | C16: 204934.188 | D16: 111500.0751 | E16: 11545778.03 | F16: 1 | G16: 3
A17: 4 | B17: 316434.2631 | C17: 206878.7661 | D17: 109555.497 | E17: 11338899.27 | F17: 1 | G17: 4
A18: 5 | B18: 316434.2631 | C18: 208841.7959 | D18: 107592.4673 | E18: 11130057.47 | F18: 1 | G18: 5
A19: 6 | B19: 316434.2631 | C19: 210823.4524 | D19: 105610.8107 | E19: 10919234.02 | F19: 1 | G19: 6
A20: 7 | B20: 316434.2631 | C20: 212823.9125 | D20: 103610.3506 | E20: 10706410.11 | F20: 1 | G20: 7
A21: 8 | B21: 316434.2631 | C21: 214843.3545 | D21: 101590.9086 | E21: 10491566.75 | F21: 1 | G21: 8
A22: 9 | B22: 316434.2631 | C22: 216881.9587 | D22: 99552.30447 | E22: 10274684.79 | F22: 1 | G22: 9
A23: 10 | B23: 316434.2631 | C23: 218939.9067 | D23: 97494.35647 | E23: 10055744.89 | F23: 1 | G23: 10
A24: 11 | B24: 316434.2631 | C24: 221017.3821 | D24: 95416.88103 | E24: 9834727.504 | F24: 1 | G24: 11
A25: 12 | B25: 316434.2631 | C25: 223114.5703 | D25: 93319.69286 | E25: 9611612.934 | F25: 1 | G25: 12
A26: 13 | B26: 316434.2631 | C26: 225231.6582 | D26: 91202.6049 | E26: 9386381.276 | F26: 2 | G26: 1
A27: 14 | B27: 316434.2631 | C27: 227368.8348 | D27: 89065.42833 | E27: 9159012.441 | F27: 2 | G27: 2
A28: 15 | B28: 316434.2631 | C28: 229526.2906 | D28: 86907.97254 | E28: 8929486.151 | F28: 2 | G28: 3
A29: 16 | B29: 316434.2631 | C29: 231704.218 | D29: 84730.0451 | E29: 8697781.933 | F29: 2 | G29: 4
A30: 17 | B30: 316434.2631 | C30: 233902.8114 | D30: 82531.45175 | E30: 8463879.121 | F30: 2 | G30: 5
A31: 18 | B31: 316434.2631 | C31: 236122.2667 | D31: 80311.9964 | E31: 8227756.855 | F31: 2 | G31: 6
A32: 19 | B32: 316434.2631 | C32: 238362.782 | D32: 78071.48111 | E32: 7989394.072 | F32: 2 | G32: 7
A33: 20 | B33: 316434.2631 | C33: 240624.5571 | D33: 75809.70603 | E33: 7748769.515 | F33: 2 | G33: 8
A34: 21 | B34: 316434.2631 | C34: 242907.7937 | D34: 73526.46943 | E34: 7505861.722 | F34: 2 | G34: 9
A35: 22 | B35: 316434.2631 | C35: 245212.6954 | D35: 71221.56767 | E35: 7260649.026 | F35: 2 | G35: 10
A36: 23 | B36: 316434.2631 | C36: 247539.4679 | D36: 68894.79518 | E36: 7013109.558 | F36: 2 | G36: 11
A37: 24 | B37: 316434.2631 | C37: 249888.3187 | D37: 66545.94443 | E37: 6763221.24 | F37: 2 | G37: 12
A38: 25 | B38: 316434.2631 | C38: 252259.4572 | D38: 64174.80591 | E38: 6510961.782 | F38: 3 | G38: 1
A39: 26 | B39: 316434.2631 | C39: 254653.095 | D39: 61781.16816 | E39: 6256308.687 | F39: 3 | G39: 2
A40: 27 | B40: 316434.2631 | C40: 257069.4455 | D40: 59364.81767 | E40: 5999239.242 | F40: 3 | G40: 3
A41: 28 | B41: 316434.2631 | C41: 259508.7242 | D41: 56925.53893 | E41: 5739730.518 | F41: 3 | G41: 4
A42: 29 | B42: 316434.2631 | C42: 261971.1487 | D42: 54463.11438 | E42: 5477759.369 | F42: 3 | G42: 5
A43: 30 | B43: 316434.2631 | C43: 264456.9387 | D43: 51977.3244 | E43: 5213302.43 | F43: 3 | G43: 6
A44: 31 | B44: 316434.2631 | C44: 266966.3159 | D44: 49467.94727 | E44: 4946336.115 | F44: 3 | G44: 7
A45: 32 | B45: 316434.2631 | C45: 269499.5039 | D45: 46934.75918 | E45: 4676836.611 | F45: 3 | G45: 8
A46: 33 | B46: 316434.2631 | C46: 272056.7289 | D46: 44377.53419 | E46: 4404779.882 | F46: 3 | G46: 9
A47: 34 | B47: 316434.2631 | C47: 274638.2189 | D47: 41796.04422 | E47: 4130141.663 | F47: 3 | G47: 10
A48: 35 | B48: 316434.2631 | C48: 277244.2041 | D48: 39190.05903 | E48: 3852897.459 | F48: 3 | G48: 11
A49: 36 | B49: 316434.2631 | C49: 279874.9169 | D49: 36559.34618 | E49: 3573022.542 | F49: 3 | G49: 12
A50: 37 | B50: 316434.2631 | C50: 282530.5921 | D50: 33903.67105 | E50: 3290491.95 | F50: 4 | G50: 1
A51: 38 | B51: 316434.2631 | C51: 285211.4664 | D51: 31222.79676 | E51: 3005280.483 | F51: 4 | G51: 2
A52: 39 | B52: 316434.2631 | C52: 287917.7789 | D52: 28516.48422 | E52: 2717362.704 | F52: 4 | G52: 3
A53: 40 | B53: 316434.2631 | C53: 290649.7711 | D53: 25784.49203 | E53: 2426712.933 | F53: 4 | G53: 4
A54: 41 | B54: 316434.2631 | C54: 293407.6866 | D54: 23026.57654 | E54: 2133305.247 | F54: 4 | G54: 5
A55: 42 | B55: 316434.2631 | C55: 296191.7714 | D55: 20242.49175 | E55: 1837113.475 | F55: 4 | G55: 6
A56: 43 | B56: 316434.2631 | C56: 299002.2738 | D56: 17431.98936 | E56: 1538111.202 | F56: 4 | G56: 7
A57: 44 | B57: 316434.2631 | C57: 301839.4444 | D57: 14594.8187 | E57: 1236271.757 | F57: 4 | G57: 8
A58: 45 | B58: 316434.2631 | C58: 304703.5364 | D58: 11730.72671 | E58: 931568.2207 | F58: 4 | G58: 9
A59: 46 | B59: 316434.2631 | C59: 307594.8052 | D59: 8839.457951 | E59: 623973.4156 | F59: 4 | G59: 10
A60: 47 | B60: 316434.2631 | C60: 310513.5086 | D60: 5920.754537 | E60: 313459.907 | F60: 4 | G60: 11
A61: 48 | B61: 316434.2631 | C61: 313459.907 | D61: 2974.356151 | E61: 1.862645149e-09 | F61: 4 | G61: 12
A62: -
A63: -
A64: -
A65: -
A66: -
A67: -
A68: -
A69: -
A70: -
A71: -
A72: -
A73: -
A74: -
A75: -
A76: -
A77: -
A78: -
A79: -
A80: -
A81: -
A82: -
A83: -
A84: -
A85: -
A86: -
A87: -
A88: -
A89: -
A90: -
A91: -
A92: -
A93: -
A94: -
A95: -
A96: -
A97: -
A98: -
A99: -
A100: -
A101: -
A102: -
A103: -
A104: -
A105: -
A106: -
A107: -
A108: -
A109: -
A110: -
A111: -
A112: -
A113: -
A114: -
A115: -
A116: -
A117: -
A118: -
A119: -
A120: -
A121: -
A122: -
A123: -
A124: -
A125: -
A126: -
A127: -
A128: -
A129: -
A130: -
A131: -
A132: -
A133: -

Sheet dimensionnement réel
B3: Investissement (CAPEX)
B5: Désignation | C5: Quantité | E5: P.U. (en Fcfa) | F5: P.T. (en Fcfa) | G5: Durée de vie
C6: Quantité | D6: Unité | H6: Amortissement Annuel
B7: Modules photovoltaïque de 275 Wc et t ; (9,31A ; 39,08V) | C7: 8 | D7: u | E7: 49191 | F7: =C7*E7 -> 393528 | G7: 25 | H7: =F7/G7 -> 15741.12
B8: Batterie de 12V, 265 Ah en C40 | C8: 2 | D8: u | E8: 327957 | F8: =C8*E8 -> 655914 | G8: 7 | H8: =F8/G8 -> 93702
B9: Régulateur Victron Smart bluesolar MPPT 100V ; 50A | C9: 1 | D9: u | E9: 114700 | F9: =E9*C9 -> 114700 | G9: 10 | H9: 11470
B10: Onduleur VICTRON (24V ; 2000W) | C10: 1 | D10: u | E10: 333500 | F10: 333500 | G10: 10 | H10: 33350
B11: Coffret de protection DC (2 disjoncteurs DC 40A + Parafoudre DC class 2) | C11: 1 | D11: ens | E11: 21550 | F11: 21550 | G11: 10 | H11: 2155
B12: Coffret de protection AC (1 disjoncteur AC 20A) | C12: 1 | D12: U | E12: 2162 | F12: 2162 | G12: 10 | H12: 216.2
B13: Démarreur électronique 2.2 kW | C13: 1 | D13: U | E13: 87648 | F13: 87648 | G13: 10 | H13: 8764.8
B14: Matériels de raccordements | C14: 1 | D14: ens | E14: 200000 | F14: 200000 | G14: 20 | H14: 10000
B15: BOX batteries et SOPPORTES | C15: 1 | D15: ens | E15: 100000 | F15: 100000 | G15: 15 | H15: 6666.666667
B16: Frais d'installation | C16: 1 | D16: ens | E16: 500000 | F16: 500000 | G16: 20 | H16: 0
A17: < | B17: Ampoules led | C17: 4 | D17: U | E17: 5000 | F17: 20000 | G17: 4 | H17: 5000
B18: Presse à huile | C18: 1 | D18: U | E18: 2033742 | F18: 2033742 | G18: 10 | H18: =F18/G18 -> 203374.2
B19: Projecteur led | C19: 2 | D19: U | E19: 40000 | F19: 80000 | G19: 10 | H19: 8000
B20: Autres | C20: 1 | D20: u | F20: 0 | G20: 10 | H20: 0
B21: Batiment | C21: 1 | D21: u | E21: 1000000 | F21: 1000000 | G21: 20 | H21: 50000
B22: transport presse et système solaire | C22: 1 | D22: u | E22: 550000 | F22: 550000 | G22: -
B23: Monitoring | C23: 1 | D23: u | E23: 393560 | F23: 393560
B24: Total | F24: =SUM(F7:F23) -> 6486304 | H24: =SUM(H7:H23) -> 448439.9867
